bitfinex/quotes_SOLUSD_20251204
["timestamp","ask_amount","ask_price","bid_price","bid_amount"]
[1764873504504,2.89473477,141.92,141.87,2.89473477]
[1764873504889,10.60114191,141.92,141.88,7.73820975]
[1764873505397,3.55473477,141.91,141.87,7.04847862]
[1764873505597,2.89473477,141.91,141.88,0.69]
[1764873506210,9.94114191,141.92,141.88,0.69]
[1764873506409,2.89473477,141.94,141.89,2.89473477]
[1764873506612,3.55473477,141.93,141.89,0.69]
[1764873507110,10.60073313,141.93,141.89,7.73760879]
[1764873507692,7.04532856,141.94,141.89,10.63234356]
[1764873507893,9.94006333,141.94,141.9,0.69]
[1764873508310,10.60006333,141.94,141.9,0.69]
[1764873508611,9.94006333,141.94,141.9,0.69]
[1764873508908,9.94006333,141.94,141.9,7.73690903]
[1764873509114,10.60006333,141.94,141.9,7.73690903]
[1764873509302,2.89473477,141.93,141.9,7.73690903]
[1764873509711,2.89473477,141.91,141.85,7.24932947]
[1764873509914,2.89473477,141.88,141.85,7.93932947]
[1764873510225,3.55473477,141.88,141.85,7.93932947]
[1764873510399,2.89473477,141.88,141.85,7.93932947]
[1764873510595,2.89473477,141.89,141.85,7.93932947]
[1764873510995,10.60255075,141.89,141.85,7.93932947]
[1764873511920,2.89473477,141.88,141.85,7.93932947]
[1764873512095,9.9430002,141.88,141.85,0.89]
[1764873512300,2.89473477,141.86,141.85,0.2]
[1764873512704,3.55473477,141.86,141.85,0.2]
[1764873514215,10.60393821,141.86,141.85,0.2]
[1764873515219,9.94393821,141.86,141.85,0.2]
[1764873515519,2.89473477,141.87,141.85,0.2]
[1764873515721,2.89473477,141.86,141.85,0.2]
[1764873518104,10.60393821,141.86,141.85,0.2]
[1764873518506,2.89473477,141.86,141.85,0.2]
[1764873519516,3.55473477,141.86,141.85,0.2]
[1764873520425,25.38112303,141.88,141.85,0.2]
[1764873520723,2.89473477,141.87,141.85,0.89]
[1764873521117,26.05872201,141.9,141.85,7.93969988]
[1764873521313,2.89473477,141.87,141.85,7.93969988]
[1764873522925,2.89473477,141.88,141.86,0.66]
[1764873523125,0.71,141.9,141.86,0.66]
[1764873523126,2.89473477,141.9,141.86,0.66]
[1764873523332,2.89473477,141.91,141.86,3.55473477]
[1764873523627,2.89473477,141.9,141.86,0.66]
[1764873523928,3.60473477,141.9,141.86,0.66]
[1764873526504,2.89473477,141.9,141.87,7.04870656]
[1764873526828,2.89473477,141.91,141.87,7.04870656]
[1764873527032,9.94118341,141.92,141.88,0.66]
[1764873527332,9.94118341,141.92,141.88,3.55473477]
[1764873527526,9.94118341,141.92,141.87,24.67047296]
[1764873527527,10.65118341,141.92,141.87,24.67047296]
[1764873527723,10.65118341,141.92,141.88,3.55473477]
[1764873527925,33.92240134,141.94,141.88,11.33473477]
[1764873527926,9.94069394,141.93,141.88,11.33473477]
[1764873528232,7.04595917,141.93,141.89,3.55473477]
[1764873528632,7.76595917,141.93,141.89,10.65213656]
[1764873528825,10.66069394,141.93,141.89,7.75740179]
[1764873529126,2.89473477,141.94,141.9,0.71]
[1764873529315,10.65964216,141.95,141.9,3.60473477]
[1764873529517,0.72,141.94,141.9,3.60473477]
[1764873529712,0.72,141.94,141.91,0.71]
[1764873529912,2.89473477,141.94,141.91,0.71]
[1764873530224,2.89473477,141.94,141.91,7.75662809]
[1764873530429,3.61473477,141.93,141.89,7.7574281]
[1764873530634,2.89473477,141.93,141.9,0.71]
[1764873530820,10.66004269,141.94,141.9,0.71]
[1764873531537,0.72,141.93,141.9,0.71]
[1764873536941,0.72,141.93,141.9,7.75714377]
[1764873537629,7.76573047,141.93,141.9,7.75714377]
[1764873537928,9.94046524,141.93,141.88,7.04772413]
[1764873538134,2.89473477,141.9,141.86,2.89473477]
[1764873538321,2.89473477,141.9,141.86,7.04904621]
[1764873538518,3.61473477,141.9,141.86,7.75904621]
[1764873538931,10.66232752,141.9,141.86,7.75904621]
[1764873539125,10.66232752,141.9,141.86,0.71]
[1764873539339,3.61473477,141.89,141.85,15.00946908]
[1764873539634,3.61473477,141.89,141.85,15.71946908]
[1764873540433,2.89473477,141.91,141.86,10.65377212]
[1764873540617,10.66173367,141.91,141.86,10.65377212]
[1764873540819,10.66173367,141.91,141.87,0.71]
[1764873541130,2.89473477,141.9,141.87,7.75860482]
[1764873542217,0.72,141.9,141.87,7.75860482]
[1764873544639,2.89473477,141.93,141.88,11.36473477]
[1764873544823,3.61473477,141.94,141.89,2.89473477]
[1764873545029,2.89473477,141.93,141.89,0.71]
[1764873545230,10.6605388,141.93,141.89,7.75736976]
[1764873547039,10.6605388,141.93,141.9,0.71]
[1764873547246,3.61473477,141.93,141.9,7.75702086]
[1764873547544,9.93966467,141.95,141.91,2.89473477]
[1764873547741,10.65966467,141.95,141.91,3.60473477]
[1764873547937,0.72,141.94,141.91,3.60473477]
[1764873548854,0.72,141.94,141.91,0.71]
[1764873549356,0.72,141.94,141.91,7.7566217]
[1764873550523,9.93966467,141.95,141.91,7.7566217]
[1764873550723,10.65966467,141.95,141.91,7.7566217]
[1764873551145,10.65966467,141.95,141.91,10.65135647]
[1764873552441,10.65966467,141.95,141.92,0.71]
[1764873552442,7.7649299,141.95,141.92,0.71]
[1764873552942,12.28301207,141.95,141.92,0.71]
[1764873553122,12.28301207,141.95,141.91,4.51808217]
[1764873553442,0.66,141.94,141.91,7.7066305]
[1764873554347,0.66,141.94,141.91,7.0466305]
[1764873554554,4.51808217,141.92,141.85,17.42994492]
[1764873554726,4.51808217,141.9,141.86,11.5670855]
[1764873555127,5.17808217,141.89,141.85,15.00957279]
[1764873555634,0.66,141.88,141.85,15.66957279]
[1764873558450,12.22605918,141.89,141.85,15.66957279]
[1764873560154,11.56605918,141.89,141.85,15.66957279]
[1764873560342,7.04797701,141.89,141.85,7.96]
[1764873560548,4.51808217,141.86,141.85,0.2]
[1764873560923,5.17808217,141.86,141.85,0.2]
[1764873561128,4.51808217,141.87,141.85,0.2]
[1764873561328,5.17808217,141.87,141.85,0.2]
[1764873561633,0.66,141.86,141.85,0.2]
[1764873562346,4.51808217,141.88,141.85,0.86]
[1764873562550,5.17808217,141.88,141.85,7.90967769]
[1764873563057,0.66,141.88,141.85,7.90967769]
[1764873565529,5.17808217,141.88,141.85,7.24967769]
[1764873565968,12.22639441,141.88,141.85,7.24967769]
[1764873566141,12.22680299,141.87,141.85,0.2]
[1764873566541,5.17808217,141.86,141.85,0.2]
[1764873568038,12.22728561,141.86,141.85,0.2]
[1764873569366,37.34609453,141.86,141.85,0.2]
[1764873571350,28.53614961,141.86,141.85,0.2]
[1764873574247,24.01806744,141.86,141.85,0.2]
[1764873574443,7.04920344,141.86,141.85,0.2]
[1764873577764,4.51808217,141.86,141.85,0.2]
[1764873578381,7.04870656,141.87,141.85,0.2]
[1764873578565,12.22678873,141.87,141.85,0.2]
[1764873578762,25.4014017,141.88,141.85,0.2]
[1764873578763,19.34650183,141.88,141.85,0.86]
[1764873578946,4.51808217,141.87,141.85,0.2]
[1764873579441,5.17808217,141.87,141.85,0.2]
[1764873580162,11.5670889,141.87,141.85,0.2]
[1764873580950,11.5670889,141.87,141.85,0.86]
[1764873581146,4.51808217,141.88,141.85,7.24954118]
[1764873581353,11.5655068,141.9,141.86,0.66]
[1764873581746,12.2255068,141.9,141.86,5.17808217]
[1764873582358,12.2255068,141.9,141.86,12.22720322]
[1764873582558,12.2255068,141.9,141.87,0.66]
[1764873583958,5.22808217,141.89,141.85,7.89946715]
[1764873584157,5.22808217,141.89,141.86,0.65]
[1764873585276,5.22808217,141.89,141.85,7.89946715]
[1764873585574,4.51808217,141.89,141.86,0.65]
[1764873585950,4.51808217,141.89,141.86,7.69892058]
[1764873586478,11.56556988,141.9,141.87,0.65]
[1764873586650,12.27556988,141.9,141.87,0.65]
[1764873588871,12.27556988,141.9,141.86,7.04892058]
[1764873589079,11.56582493,141.89,141.86,7.69892058]
[1764873589872,12.27582493,141.89,141.85,15.00951938]
[1764873590170,12.27582493,141.89,141.86,0.65]
[1764873590976,7.04920344,141.86,141.85,0.2]
[1764873591277,11.56728561,141.86,141.85,0.2]
[1764873591974,7.04920344,141.86,141.85,0.2]
[1764873596858,7.75920344,141.86,141.85,0.2]
[1764873597171,7.04920344,141.86,141.85,0.2]
[1764873598275,20.03728561,141.86,141.85,0.2]
[1764873602380,36.34614961,141.86,141.85,0.2]
[1764873602764,39.16931367,141.86,141.85,0.2]
[1764873602964,39.16931367,141.86,141.82,0.2]
[1764873602965,16.308864,141.84,141.82,0.2]
[1764873603166,16.79616434,141.83,141.82,0.2]
[1764873603416,17.50616434,141.83,141.78,0.2]
[1764873603570,4.51808217,141.79,141.78,0.2]
[1764873604087,5.22808217,141.79,141.78,0.2]
[1764873604275,12.28076571,141.79,141.78,0.2]
[1764873604861,16.308864,141.77,141.76,0.2]
[1764873605168,28.58694617,141.77,141.76,0.2]
[1764873605367,29.29694617,141.77,141.76,0.2]
[1764873605779,29.31694617,141.77,141.76,0.2]
[1764873606162,36.37062466,141.77,141.76,0.2]
[1764873606668,0.71,141.76,141.74,0.2]
[1764873606866,25.34502834,141.75,141.74,0.2]
[1764873607269,26.05502834,141.75,141.74,0.2]
[1764873607585,9.74616434,141.75,141.74,1e-08]
[1764873607783,26.05502834,141.75,141.74,1e-08]
[1764873607961,9.74616434,141.75,141.72,0.2]
[1764873608292,7.05616709,141.72,141.71,0.1]
[1764873608480,11.57424926,141.72,141.71,0.1]
[1764873608667,12.28424926,141.72,141.71,0.1]
[1764873608869,20.06424926,141.72,141.71,0.1]
[1764873609070,20.06424926,141.72,141.63,7.78]
[1764873609289,16.308864,141.69,141.66,0.65]
[1764873609495,28.60694617,141.69,141.64,13.32802709]
[1764873609789,28.60694617,141.69,141.66,0.65]
[1764873609975,20.82694617,141.69,141.66,0.65]
[1764873610371,4.51808217,141.69,141.66,7.7091529]
[1764873610988,4.51808217,141.69,141.67,0.65]
[1764873611568,12.29808217,141.7,141.68,0.85]
[1764873611978,4.51808217,141.69,141.68,0.2]
[1764873612177,5.22808217,141.69,141.68,0.2]
[1764873612494,12.28574326,141.69,141.68,0.2]
[1764873612988,16.80382543,141.69,141.68,0.2]
[1764873613165,23.86432913,141.69,141.68,0.2]
[1764873613373,12.28574326,141.69,141.68,0.2]
[1764873614591,7.76766109,141.69,141.68,0.2]
[1764873614778,10.67155794,141.69,141.68,0.2]
[1764873614984,18.45155794,141.69,141.68,0.2]
[1764873615698,30.06714534,141.69,141.68,0.2]
[1764873616398,46.37600934,141.69,141.68,1e-08]
[1764873616774,64.02016206,141.69,141.62,0.7]
[1764873616974,2.90389685,141.63,141.62,0.7]
[1764873618974,2.90389685,141.64,141.62,0.7]
[1764873621786,0.68,141.66,141.62,10.66493184]
[1764873621787,2.90389685,141.66,141.62,10.66493184]
[1764873622209,15.51864044,141.68,141.63,0.7]
[1764873622411,2.90389685,141.66,141.63,0.7]
[1764873623020,2.90389685,141.66,141.63,7.76058553]
[1764873623401,2.90389685,141.66,141.64,0.7]
[1764873624229,2.90389685,141.65,141.62,0.7]
[1764873624900,2.90389685,141.64,141.62,0.7]
[1764873626318,3.58389685,141.63,141.61,0.2]
[1764873626492,2.90389685,141.62,141.61,0.2]
[1764873626694,0.68,141.63,141.61,0.2]
[1764873627004,2.90389685,141.62,141.61,0.2]
[1764873627418,3.58389685,141.62,141.61,0.2]
[1764873627930,10.68389685,141.63,141.61,0.2]
[1764873628097,2.90389685,141.62,141.61,0.2]
[1764873628492,2.90389685,141.63,141.61,0.9]
[1764873628694,9.96458235,141.63,141.61,0.2]
[1764873628895,3.58389685,141.62,141.61,0.2]
[1764873629095,11.36389685,141.62,141.61,0.2]
[1764873629321,16.308864,141.59,141.56,0.2]
[1764873629604,8.46,141.58,141.5,0.7]
[1764873629815,16.308864,141.55,141.5,0.7]
[1764873630036,7.78,141.54,141.5,0.7]
[1764873630235,7.06563979,141.53,141.5,0.7]
[1764873630450,2.90389685,141.53,141.5,0.7]
[1764873631224,24.768864,141.55,141.5,0.7]
[1764873631225,31.83371677,141.55,141.5,7.76707956]
[1764873631433,2.90389685,141.52,141.5,7.76707956]
[1764873631640,2.90389685,141.53,141.51,0.7]
[1764873631840,7.74382428,141.57,141.51,0.7]
[1764873632017,2.90389685,141.55,141.51,0.7]
[1764873632216,0.68,141.61,141.53,8.80994492]
[1764873632414,6.91967166,141.59,141.54,6.91967166]
[1764873632631,6.91967166,141.59,141.54,7.61967166]
[1764873632841,0.68,141.59,141.55,0.7]
[1764873633035,0.68,141.58,141.53,0.7]
[1764873633509,6.91967166,141.54,141.51,0.7]
[1764873633715,6.91967166,141.55,141.51,0.7]
[1764873634033,6.91967166,141.55,141.51,7.76659133]
[1764873634430,13.98434926,141.55,141.52,0.7]
[1764873634636,6.91967166,141.53,141.5,7.76710406]
[1764873634841,0.68,141.54,141.51,0.7]
[1764873634842,6.91967166,141.54,141.51,0.7]
[1764873635736,6.91967166,141.52,141.48,8.80994492]
[1764873635934,0.68,141.53,141.49,0.7]
[1764873636118,7.59967166,141.53,141.49,0.7]
[1764873636637,13.98581072,141.52,141.49,0.7]
[1764873637348,6.91967166,141.51,141.48,0.7]
[1764873637839,6.91967166,141.51,141.47,14.96850055]
[1764873638143,0.68,141.5,141.47,0.1]
[1764873638321,6.91967166,141.48,141.47,0.1]
[1764873638720,14.66780849,141.48,141.47,0.1]
[1764873639340,22.46780849,141.48,141.47,0.1]
[1764873639544,38.77667249,141.48,141.47,0.1]
[1764873639729,30.97667249,141.48,141.47,0.1]
[1764873641322,38.77667249,141.48,141.47,0.1]
[1764873643568,22.46780849,141.48,141.39,9.48994492]
[1764873643859,6.91967166,141.42,141.39,9.48994492]
[1764873644021,6.91967166,141.42,141.4,0.68]
[1764873644755,6.91967166,141.41,141.37,0.68]
[1764873644932,6.91967166,141.41,141.38,7.0728284]
[1764873645457,6.91967166,141.41,141.39,0.68]
[1764873645626,16.308864,141.44,141.4,7.0719811]
[1764873645826,7.8,141.44,141.41,15.72961658]
[1764873646026,6.91967166,141.45,141.41,15.90961658]
[1764873646226,6.91967166,141.44,141.42,0.68]
[1764873646649,6.91967166,141.45,141.42,0.68]
[1764873647147,13.98893303,141.46,141.42,0.68]
[1764873647344,6.91967166,141.45,141.42,0.68]
[1764873647537,6.91967166,141.43,141.39,23.22853566]
[1764873647737,6.91967166,141.4,141.31,17.69114151]
[1764873647931,6.91967166,141.35,141.3,6.91967166]
[1764873648252,6.91967166,141.35,141.32,7.07603582]
[1764873648478,6.91967166,141.36,141.32,7.07597027]
[1764873648649,6.91967166,141.35,141.32,0.72]
[1764873648960,6.91967166,141.36,141.33,0.72]
[1764873649343,6.91967166,141.34,141.31,0.72]
[1764873649644,6.91967166,141.33,141.31,0.72]
[1764873650833,7.07422943,141.36,141.31,16.60656033]
[1764873651057,6.91967166,141.35,141.31,16.60656033]
[1764873651360,6.91967166,141.37,141.32,0.72]
[1764873651654,6.91967166,141.36,141.32,0.72]
[1764873651852,41.75500839,141.38,141.32,0.72]
[1764873652158,6.91967166,141.36,141.32,7.63967166]
[1764873652462,7.82,141.39,141.33,15.72961658]
[1764873652463,14.89268667,141.39,141.33,15.72961658]
[1764873652659,6.91967166,141.38,141.33,16.44961658]
[1764873652853,6.91967166,141.38,141.31,41.07707943]
[1764873652854,6.91967166,141.39,141.35,8.80994492]
[1764873653238,6.91967166,141.39,141.36,0.72]
[1764873654045,21.81183076,141.4,141.36,7.79406629]
[1764873654246,6.91967166,141.39,141.36,7.79406629]
[1764873654432,6.91967166,141.39,141.36,0.72]
[1764873654937,6.91967166,141.39,141.36,7.79413436]
[1764873655334,7.0721591,141.4,141.37,0.72]
[1764873655335,6.91967166,141.4,141.37,0.72]
[1764873655535,13.99139619,141.41,141.37,0.72]
[1764873656056,6.91967166,141.4,141.37,0.72]
[1764873656453,7.76172453,141.41,141.37,0.72]
[1764873657057,7.07172453,141.41,141.37,7.79362381]
[1764873657234,13.99139619,141.41,141.37,7.79362381]
[1764873657436,13.99139619,141.41,141.34,17.68717423]
[1764873657437,6.91967166,141.38,141.33,7.79550539]
[1764873657755,6.91967166,141.37,141.33,7.79550539]
[1764873657948,7.07413695,141.36,141.33,0.72]
[1764873658257,13.99380861,141.36,141.33,0.72]
[1764873658557,6.91967166,141.35,141.33,0.72]
[1764873658759,6.91967166,141.35,141.31,22.53597939]
[1764873658954,7.07413695,141.36,141.32,7.7960978]
[1764873658955,13.99380861,141.36,141.32,7.7960978]
[1764873659152,13.99380861,141.36,141.32,0.72]
[1764873659661,13.99380861,141.36,141.32,7.79582128]
[1764873659860,6.91967166,141.37,141.33,7.0755856]
[1764873660067,13.99295199,141.38,141.33,14.71525726]
[1764873660242,6.91967166,141.36,141.32,13.99569091]
[1764873660445,7.60967166,141.36,141.32,7.79601925]
[1764873660854,25.4461209,141.38,141.33,0.72]
[1764873661067,6.91967166,141.35,141.31,15.61652136]
[1764873661368,7.07328033,141.38,141.34,6.91967166]
[1764873661568,6.91967166,141.37,141.34,0.72]
[1764873661862,13.9939525,141.36,141.32,7.07608218]
[1764873662058,13.9939525,141.36,141.33,0.72]
[1764873662258,6.91967166,141.36,141.33,0.72]
[1764873662460,13.99380969,141.36,141.33,0.72]
[1764873662846,6.91967166,141.35,141.31,15.61648719]
[1764873663259,7.60967166,141.35,141.31,15.61648719]
[1764873663656,6.91967166,141.35,141.32,0.72]
[1764873663973,14.68448036,141.35,141.31,15.61648719]
[1764873664264,14.68448036,141.35,141.31,8.54]
[1764873665152,13.99506683,141.34,141.31,8.54]
[1764873665465,6.91967166,141.34,141.31,15.61660505]
[1764873665672,13.99449363,141.35,141.32,0.72]
[1764873666165,13.99449363,141.35,141.31,14.89660505]
[1764873666366,14.68449363,141.35,141.31,15.61660505]
[1764873666669,6.91967166,141.35,141.32,0.72]
[1764873667044,13.99393113,141.36,141.32,0.72]
[1764873667246,13.99393113,141.36,141.32,7.63967166]
[1764873667572,6.91967166,141.34,141.31,7.82]
[1764873667949,6.91967166,141.34,141.28,0.72]
[1764873667950,6.91967166,141.32,141.28,0.72]
[1764873668362,13.99608779,141.32,141.28,0.72]
[1764873668666,6.91967166,141.29,141.25,0.72]
[1764873668880,6.91967166,141.28,141.24,14.89994854]
[1764873669045,6.91967166,141.27,141.23,7.80051405]
[1764873669246,14.73967166,141.28,141.24,0.72]
[1764873669786,41.07378448,141.33,141.24,0.72]
[1764873669952,6.91967166,141.29,141.24,7.63967166]
[1764873670149,6.91967166,141.29,141.25,7.07964601]
[1764873670150,6.91967166,141.28,141.25,7.07964601]
[1764873670358,7.76783184,141.29,141.25,7.07964601]
[1764873670577,7.60967166,141.28,141.25,7.07964601]
[1764873671284,7.60967166,141.27,141.24,7.08001873]
[1764873671958,6.91967166,141.27,141.24,7.80001873]
[1764873672170,6.91967166,141.28,141.24,7.80001873]
[1764873672377,6.91967166,141.3,141.25,7.63967166]
[1764873672551,6.91967166,141.3,141.26,0.72]
[1764873672997,8.51,141.39,141.28,6.91967166]
[1764873673292,6.91967166,141.33,141.27,8.80994492]
[1764873673576,6.91967166,141.33,141.29,6.91967166]
[1764873673953,7.59967166,141.32,141.27,15.72961658]
[1764873674178,7.59967166,141.32,141.26,7.82]
[1764873674179,6.91967166,141.31,141.26,15.42967166]
[1764873674481,6.91967166,141.3,141.26,15.5886788]
[1764873674779,7.59967166,141.3,141.26,15.5886788]
[1764873674955,7.59967166,141.29,141.26,7.0786788]
[1764873675150,7.0769863,141.31,141.26,7.0786788]
[1764873675350,14.67723156,141.3,141.26,7.7686788]
[1764873675586,14.67723156,141.3,141.26,7.0786788]
[1764873675946,14.67723156,141.3,141.26,7.7686788]
[1764873676394,19.17654357,141.3,141.26,7.0786788]
[1764873676680,19.85654357,141.3,141.26,0.69]
[1764873676863,12.77898367,141.31,141.26,12.78898367]
[1764873677063,12.77898367,141.31,141.27,0.69]
[1764873677263,12.09898367,141.32,141.27,12.78898367]
[1764873677451,12.09898367,141.31,141.27,0.69]
[1764873677658,12.09898367,141.3,141.27,0.69]
[1764873678154,12.09898367,141.3,141.25,36.87774472]
[1764873678363,12.09898367,141.3,141.26,0.69]
[1764873678677,12.09898367,141.3,141.27,7.07864373]
[1764873678986,12.09898367,141.31,141.27,19.1776274]
[1764873679195,12.77898367,141.31,141.27,19.8676274]
[1764873679489,12.77898367,141.31,141.27,7.76864373]
[1764873680175,12.77898367,141.31,141.25,17.69911504]
[1764873680176,12.09898367,141.29,141.25,12.09898367]
[1764873680365,12.09898367,141.29,141.26,7.07884149]
[1764873680567,12.77898367,141.3,141.26,7.76884149]
[1764873680885,12.09898367,141.31,141.27,7.07857446]
[1764873681186,12.77898367,141.31,141.27,7.76857446]
[1764873681362,12.09898367,141.31,141.27,7.07857446]
[1764873681570,12.77898367,141.31,141.27,7.76857446]
[1764873682080,12.09898367,141.31,141.28,0.69]
[1764873682284,12.77898367,141.31,141.28,7.07784073]
[1764873683187,19.17571926,141.31,141.28,7.07784073]
[1764873683393,12.09898367,141.3,141.28,7.07784073]
[1764873683752,12.77898367,141.31,141.28,7.07784073]
[1764873685400,12.09898367,141.3,141.27,7.76845507]
[1764873685767,12.77898367,141.31,141.27,7.76845507]
[1764873686286,19.85565989,141.31,141.27,7.07845507]
[1764873686457,19.85565989,141.31,141.27,7.76845507]
[1764873687570,12.77898367,141.31,141.27,7.76845507]
[1764873687777,19.85574295,141.31,141.27,7.76845507]
[1764873688198,12.77898367,141.31,141.27,7.76845507]
[1764873689474,7.75583524,141.33,141.28,0.69]
[1764873689679,19.91898367,141.32,141.28,0.69]
[1764873689865,12.09898367,141.33,141.28,12.78898367]
[1764873690191,27.67428936,141.34,141.29,12.09898367]
[1764873690392,27.67428936,141.34,141.3,7.07714083]
[1764873690568,20.59898367,141.34,141.3,19.8661245]
[1764873690768,20.59898367,141.34,141.3,7.76714083]
[1764873691170,20.59898367,141.34,141.3,19.8661245]
[1764873691375,26.99422906,141.34,141.3,19.8661245]
[1764873691563,27.67422906,141.34,141.3,7.76714083]
[1764873691885,20.59898367,141.34,141.3,7.76714083]
[1764873692472,12.09898367,141.34,141.3,7.07714083]
[1764873692674,12.09898367,141.34,141.31,0.69]
[1764873692862,19.85412523,141.34,141.31,0.69]
[1764873693064,19.85412523,141.34,141.3,7.07714083]
[1764873693285,19.85412523,141.34,141.3,7.76714083]
[1764873694190,7.82,141.35,141.31,0.69]
[1764873694191,19.91898367,141.35,141.31,0.69]
[1764873694890,27.67377035,141.35,141.31,0.69]
[1764873695467,12.77898367,141.34,141.31,0.69]
[1764873696191,12.77898367,141.34,141.31,7.76634723]
[1764873696867,19.91898367,141.35,141.31,7.76634723]
[1764873697069,20.59898367,141.35,141.31,7.76634723]
[1764873697998,0.68,141.34,141.31,7.76634723]
[1764873698366,26.9937215,141.35,141.31,7.76634723]
[1764873698602,12.09898367,141.34,141.31,7.76634723]
[1764873699195,20.59898367,141.35,141.31,7.76634723]
[1764873699496,12.09898367,141.37,141.32,12.78898367]
[1764873699693,12.09898367,141.38,141.33,12.78898367]
[1764873699882,12.77898367,141.37,141.33,0.69]
[1764873700086,12.77898367,141.37,141.31,33.57789217]
[1764873700087,12.09898367,141.35,141.31,25.45794725]
[1764873700477,11.63105856,141.36,141.32,0.69]
[1764873700699,12.31105856,141.36,141.32,0.69]
[1764873701025,5.23672797,141.36,141.32,0.69]
[1764873701174,19.45041071,141.37,141.32,5.24672797]
[1764873701501,7.82,141.37,141.33,4.55672797]
[1764873701700,4.55672797,141.37,141.33,0.69]
[1764873701998,4.55672797,141.37,141.34,0.69]
[1764873702305,5.23672797,141.37,141.33,0.72]
[1764873702777,5.25672797,141.37,141.34,7.07513796]
[1764873702973,4.55672797,141.37,141.34,7.07513796]
[1764873703180,5.21672797,141.37,141.34,7.07513796]
[1764873703903,5.21672797,141.37,141.34,7.76513796]
[1764873704477,5.21672797,141.37,141.32,17.68965548]
[1764873704700,5.21672797,141.37,141.33,5.24672797]
[1764873705201,0.66,141.37,141.34,0.69]
[1764873705395,5.21672797,141.37,141.34,0.69]
[1764873705605,0.66,141.36,141.32,22.93638345]
[1764873705790,12.29038473,141.37,141.33,0.69]
[1764873705982,5.21672797,141.37,141.33,0.69]
[1764873706180,0.66,141.36,141.33,0.69]
[1764873706500,12.29124478,141.36,141.31,12.32336798]
[1764873706699,12.29124478,141.36,141.31,7.07664001]
[1764873707002,5.21672797,141.35,141.31,7.07664001]
[1764873707202,7.82,141.35,141.32,5.24672797]
[1764873707385,7.82,141.36,141.32,5.24672797]
[1764873707704,7.82,141.36,141.33,0.69]
[1764873707705,13.03672797,141.36,141.33,0.69]
[1764873707903,13.03672797,141.36,141.32,5.24672797]
[1764873708080,13.03672797,141.36,141.32,0.69]
[1764873708401,0.66,141.35,141.31,17.69160002]
[1764873708584,4.55672797,141.34,141.29,5.24672797]
[1764873708992,5.21672797,141.34,141.3,7.76683185]
[1764873709192,0.66,141.33,141.3,7.76683185]
[1764873709502,0.66,141.33,141.3,7.07683185]
[1764873709682,5.21672797,141.33,141.29,7.76733892]
[1764873710383,12.29254658,141.33,141.29,7.76733892]
[1764873710892,4.55672797,141.31,141.28,7.0781283]
[1764873711200,4.55672797,141.31,141.26,4.55672797]
[1764873711201,4.55672797,141.31,141.29,7.07763172]
[1764873711406,5.21672797,141.31,141.28,7.76782904]
[1764873711700,4.55672797,141.32,141.28,7.07782904]
[1764873711878,4.55672797,141.31,141.28,7.07782904]
[1764873712079,5.21672797,141.31,141.28,7.07782904]
[1764873712295,5.21672797,141.31,141.28,7.76782904]
[1764873712495,5.21672797,141.31,141.28,7.07782904]
[1764873712909,8.48,141.33,141.29,0.69]
[1764873713119,13.03672797,141.33,141.29,0.69]
[1764873713407,5.21672797,141.32,141.28,7.07782904]
[1764873713607,4.55672797,141.31,141.28,7.07782904]
[1764873713809,5.21672797,141.31,141.28,7.76782904]
[1764873714104,4.55672797,141.32,141.28,7.76782904]
[1764873714287,5.21672797,141.32,141.28,12.32455701]
[1764873714804,4.55672797,141.34,141.3,4.55672797]
[1764873715316,5.21672797,141.33,141.28,33.28318577]
[1764873715502,5.21672797,141.33,141.28,37.83991374]
[1764873715706,5.21672797,141.33,141.29,0.69]
[1764873716205,4.55672797,141.32,141.28,19.45455701]
[1764873716407,5.21672797,141.32,141.28,15.58782904]
[1764873716910,5.21672797,141.32,141.28,19.45455701]
[1764873717293,5.21672797,141.32,141.28,12.32455701]
[1764873717684,12.29293704,141.32,141.28,12.32455701]
[1764873717884,7.73620907,141.32,141.28,12.32455701]
[1764873718089,12.29293704,141.32,141.28,12.32455701]
[1764873718310,11.63293704,141.32,141.28,7.76782904]
[1764873718493,0.66,141.31,141.28,7.07782904]
[1764873718903,5.21672797,141.31,141.28,7.07782904]